bitfinex-derivatives/quotes_BTCF0:USTF0_20250517
["timestamp","ask_amount","ask_price","bid_price","bid_amount"]
[1747507498626,0.40876373,103140.0,103130.0,1.59789179]
[1747507499924,0.40876373,103140.0,103130.0,1.23709179]
[1747507500227,0.47506373,103140.0,103130.0,1.23709179]
[1747507501131,0.47506373,103140.0,103130.0,1.23709184]
[1747507501343,0.66889323,103140.0,103130.0,0.78657938]
[1747507501631,0.47506373,103140.0,103130.0,0.78657938]
[1747507501824,0.66889323,103140.0,103130.0,0.78657938]
[1747507502333,0.47506373,103140.0,103130.0,0.78657938]
[1747507503130,0.66889323,103140.0,103130.0,0.78657938]
[1747507503331,1.12764569,103140.0,103130.0,0.78657938]
[1747507503736,1.0065569,103140.0,103130.0,0.78657938]
[1747507504033,1.0065569,103140.0,103130.0,0.73712845]
[1747507506835,0.90860444,103140.0,103130.0,0.73712845]
[1747507507439,0.90860444,103140.0,103130.0,0.70009923]
[1747507507629,1.0065569,103140.0,103130.0,0.70009923]
[1747507508136,1.0065569,103140.0,103130.0,0.70009945]
[1747507515341,1.0065569,103140.0,103130.0,0.70009941]
[1747507517140,1.10450936,103140.0,103130.0,0.70009941]
[1747507517345,1.10450936,103140.0,103130.0,0.63259941]
[1747507517645,1.32074936,103140.0,103130.0,0.63259941]
[1747507518732,1.16967442,103140.0,103130.0,0.63259941]
[1747507520548,1.17067442,103140.0,103130.0,0.63259941]
[1747507521050,1.17067442,103140.0,103130.0,0.63259968]
[1747507521347,1.17167442,103140.0,103130.0,0.63159968]
[1747507525250,1.17167442,103140.0,103130.0,0.70229968]
[1747507525548,1.38329924,103140.0,103130.0,0.70229968]
[1747507526444,1.38329924,103140.0,103130.0,0.70229969]
[1747507527551,1.38329924,103140.0,103130.0,0.69926874]
[1747507533053,1.38329924,103140.0,103130.0,0.51042044]
[1747507533448,1.38329924,103140.0,103130.0,0.26042044]
[1747507535756,1.38329924,103140.0,103130.0,0.18972044]
[1747507535956,1.48329924,103140.0,103130.0,0.18972044]
[1747507537949,1.58025924,103140.0,103130.0,0.18972044]
[1747507539055,1.58025924,103140.0,103130.0,0.0375597]
[1747507545361,0.1938483,103130.0,103120.0,0.0705]
[1747507545561,1.08308076,103130.0,103120.0,0.2205]
[1747507546265,1.08308076,103130.0,103120.0,0.4005]
[1747507546467,1.08308076,103130.0,103120.0,0.4015]
[1747507547565,1.08308076,103130.0,103120.0,0.4025]
[1747507548066,1.08308076,103130.0,103120.0,0.4015]
[1747507548267,1.08408076,103130.0,103120.0,0.4015]
[1747507548868,1.08408076,103130.0,103120.0,0.2515]
[1747507549267,1.08408076,103130.0,103120.0,0.25694216]
[1747507549768,1.08508076,103130.0,103120.0,0.25594216]
[1747507553775,1.09508076,103130.0,103120.0,0.25594216]
[1747507556073,1.09508076,103130.0,103120.0,0.05963179]
[1747507559273,0.1938671,103120.0,103110.0,0.13753958]
[1747507559469,1.07191956,103120.0,103110.0,0.20733958]
[1747507560190,1.07191956,103120.0,103110.0,0.38733958]
[1747507560877,1.07191956,103120.0,103110.0,0.38833958]
[1747507562377,1.07191956,103120.0,103110.0,0.38933958]
[1747507562569,1.07191956,103120.0,103110.0,0.38833958]
[1747507562772,1.07291956,103120.0,103110.0,0.38833958]
[1747507563069,1.07391956,103120.0,103110.0,0.38733958]
[1747507564078,1.08380043,103120.0,103110.0,0.38733958]
[1747507564476,1.08380043,103120.0,103110.0,0.39278174]
[1747507564872,1.44460043,103120.0,103110.0,0.39278174]
[1747507565177,1.44460043,103120.0,103110.0,0.39581339]
[1747507566379,1.65629675,103120.0,103110.0,0.39581339]
[1747507568772,1.55834429,103120.0,103110.0,0.39581339]
[1747507569079,1.65629675,103120.0,103110.0,0.39581339]
[1747507569973,1.55834429,103120.0,103110.0,0.39581339]
[1747507570180,1.87165675,103120.0,103110.0,0.39581339]
[1747507570874,1.36161588,103120.0,103110.0,0.86969929]
[1747507571079,1.19716342,103120.0,103110.0,0.86969929]
[1747507571386,1.51075588,103120.0,103110.0,0.86969929]
[1747507572083,1.66201133,103120.0,103110.0,0.86969929]
[1747507572285,1.66201133,103120.0,103110.0,0.61969929]
[1747507572785,1.73231133,103120.0,103110.0,0.86969929]
[1747507572976,1.63435887,103120.0,103110.0,0.86969929]
[1747507573177,1.73231133,103120.0,103110.0,0.86969929]
[1747507573985,1.63435887,103120.0,103110.0,0.86969929]
[1747507574283,1.73231133,103120.0,103110.0,0.86969929]
[1747507575198,1.73231133,103120.0,103110.0,0.42581321]
[1747507575386,1.80311133,103120.0,103110.0,0.42581321]
[1747507576588,1.80311133,103120.0,103110.0,0.42581329]
[1747507578282,1.80311133,103120.0,103110.0,0.42278174]
[1747507578586,1.80311133,103120.0,103110.0,0.42581329]
[1747507580191,1.80311133,103120.0,103110.0,0.42581331]
[1747507581986,1.80311133,103120.0,103110.0,0.42581333]
[1747507586996,1.65185588,103120.0,103110.0,0.42581333]
[1747507589194,1.65185588,103120.0,103110.0,0.42278174]
[1747507589501,1.65185588,103120.0,103110.0,0.42581332]
[1747507592795,1.65185588,103120.0,103110.0,0.42581334]
[1747507594904,1.65185588,103120.0,103110.0,0.35801334]
[1747507597603,1.55390342,103120.0,103110.0,0.35801334]
[1747507597912,1.86685588,103120.0,103110.0,0.60801334]
[1747507598292,1.65515956,103120.0,103110.0,0.60801334]
[1747507599609,1.29435956,103120.0,103110.0,0.60801334]
[1747507601910,1.29435956,103120.0,103110.0,0.60801331]
[1747507603009,1.29427956,103120.0,103110.0,0.60801331]
[1747507604613,0.9814071,103120.0,103110.0,0.60801331]
[1747507605003,0.9814071,103120.0,103110.0,0.66401331]
[1747507605304,1.07935956,103120.0,103110.0,0.66401331]
[1747507607414,1.07935956,103120.0,103110.0,0.66401326]
[1747507607917,0.93033472,103120.0,103110.0,0.66401326]
[1747507608111,1.29113472,103120.0,103110.0,0.66401326]
[1747507608619,1.19318226,103120.0,103110.0,0.66401326]
[1747507608812,1.29113472,103120.0,103110.0,0.41401326]
[1747507609010,1.29113472,103120.0,103110.0,0.42401326]
[1747507609206,1.29113472,103120.0,103110.0,0.66098174]
[1747507609413,1.29113472,103120.0,103110.0,0.66401326]
[1747507610624,1.38908718,103120.0,103110.0,0.54021326]
[1747507611122,1.38908718,103120.0,103110.0,0.51021326]
[1747507615521,1.38908718,103120.0,103110.0,0.26021326]
[1747507615723,1.38908718,103120.0,103110.0,0.27021326]
[1747507616428,1.38908718,103120.0,103110.0,0.19041326]
[1747507616823,1.38908718,103120.0,103110.0,0.18738174]
[1747507619435,1.48908718,103120.0,103110.0,0.18738174]
[1747507622231,1.70376718,103120.0,103110.0,0.18738174]
[1747507623033,1.60581472,103120.0,103110.0,0.18738174]
[1747507623237,1.70376718,103120.0,103110.0,0.18738174]
[1747507626939,1.70376718,103120.0,103110.0,0.19041349]
[1747507628139,1.34296718,103120.0,103110.0,0.19041349]
[1747507628342,2.06448718,103120.0,103110.0,0.19041349]
[1747507628532,2.06448718,103120.0,103110.0,0.19041348]
[1747507630141,1.34288718,103120.0,103110.0,0.19041348]
[1747507630434,2.06448718,103120.0,103110.0,0.19041348]
[1747507633144,1.34288718,103120.0,103110.0,0.19041348]
[1747507633335,2.06448718,103120.0,103110.0,0.19041348]
[1747507635036,1.84988718,103120.0,103110.0,0.19041348]
[1747507635228,2.06436718,103120.0,103110.0,0.19041348]
[1747507635635,2.06436718,103120.0,103110.0,0.24181348]
[1747507639445,1.96641472,103120.0,103110.0,0.24181342]
[1747507643641,1.96501472,103120.0,103110.0,0.24181342]
[1747507643845,1.32451956,103120.0,103110.0,0.24181342]
[1747507644349,1.1265671,103120.0,103110.0,0.25181342]
[1747507644534,1.22451956,103120.0,103110.0,0.25181342]
[1747507644940,1.22451956,103120.0,103110.0,0.30111336]
[1747507645246,1.22451956,103120.0,103110.0,0.35481336]
[1747507646645,1.22451956,103120.0,103110.0,0.35481337]
[1747507650549,1.43887956,103120.0,103110.0,0.35481337]
[1747507650745,1.1998271,103120.0,103110.0,0.78869927]
[1747507650955,1.1998271,103120.0,103110.0,0.88665173]
[1747507651144,1.1998271,103120.0,103110.0,0.78869927]
[1747507651853,0.9854671,103120.0,103110.0,0.78869927]
[1747507652152,0.9174671,103120.0,103110.0,0.78869927]
[1747507653548,1.12910863,103120.0,103110.0,0.78869927]
[1747507654143,1.17970863,103120.0,103110.0,0.78869927]
[1747507659956,1.27766109,103120.0,103110.0,0.78869927]
[1747507660454,1.32746109,103120.0,103110.0,0.59481337]
[1747507660854,1.85389355,103120.0,103110.0,0.21738174]
[1747507661055,1.90389355,103120.0,103110.0,0.18738174]
[1747507661953,1.91389355,103120.0,103110.0,0.18738174]
[1747507665352,1.47541355,103120.0,103110.0,0.23908174]
[1747507666262,1.68945355,103120.0,103110.0,0.23908174]
[1747507668564,1.68945355,103120.0,103110.0,0.18738174]
[1747507668755,1.47541355,103120.0,103110.0,0.18738174]
[1747507668965,1.90377355,103120.0,103110.0,0.18738174]
[1747507671760,1.68977355,103120.0,103110.0,0.18738174]
[1747507671963,1.80578109,103120.0,103110.0,0.18738174]
[1747507672266,1.37746109,103120.0,103110.0,0.23988174]
[1747507672464,1.37746109,103120.0,103110.0,0.43376764]
[1747507672766,1.37746109,103120.0,103110.0,0.43679929]
[1747507672963,1.80578109,103120.0,103110.0,0.24291337]
[1747507673469,1.80578109,103120.0,103110.0,0.19041337]
[1747507673661,1.90373355,103120.0,103110.0,0.19041337]
[1747507673963,1.91373355,103120.0,103110.0,0.19041337]
[1747507674860,1.91373355,103120.0,103110.0,0.18738174]
[1747507675665,1.48541355,103120.0,103110.0,0.18738174]
[1747507676164,1.48541355,103120.0,103110.0,0.19041346]
[1747507676564,1.48541355,103120.0,103110.0,0.18738174]
[1747507676765,1.91325355,103120.0,103110.0,0.18738174]
[1747507677062,1.19165355,103120.0,103110.0,0.18738174]
[1747507677265,1.91325355,103120.0,103110.0,0.19041341]
[1747507677765,1.91325355,103120.0,103110.0,0.18738174]
[1747507685174,1.48541355,103120.0,103110.0,0.18738174]
[1747507685374,1.48541355,103120.0,103110.0,0.24181344]
[1747507685872,1.91313355,103120.0,103110.0,0.24181344]
[1747507686176,1.91313355,103120.0,103110.0,0.24181343]
[1747507686669,1.70149202,103120.0,103110.0,0.24181343]
[1747507686972,1.70149202,103120.0,103110.0,0.23878174]
[1747507687671,1.60353956,103120.0,103110.0,0.23878174]
[1747507688173,1.60353956,103120.0,103110.0,0.24181342]
[1747507689471,1.70149202,103120.0,103110.0,0.24181342]
[1747507690764,1.70149202,103120.0,103110.0,0.06637305]
[1747507691275,1.70349202,103120.0,103110.0,0.06637305]
[1747507693375,0.98189202,103120.0,103110.0,0.06637305]
[1747507693674,1.70349202,103120.0,103110.0,0.06637305]
[1747507694973,0.98189202,103120.0,103110.0,0.06637305]
[1747507695477,1.70349202,103120.0,103110.0,0.06637305]
[1747507695979,0.98189202,103120.0,103110.0,0.06637305]
[1747507696181,1.70349202,103120.0,103110.0,0.06637305]
[1747507697778,1.60553956,103120.0,103110.0,0.06637305]
[1747507700184,0.88393956,103120.0,103110.0,0.06637305]
[1747507700385,1.60553956,103120.0,103110.0,0.06637305]
[1747507700583,1.60553956,103120.0,103110.0,0.06637304]
[1747507704085,1.5075871,103120.0,103110.0,0.06637304]
[1747507704383,1.60553956,103120.0,103110.0,0.06637304]
[1747507706492,1.81714034,103120.0,103110.0,0.06637304]
[1747507706687,1.9150928,103120.0,103110.0,0.06637304]
[1747507707087,1.9150928,103120.0,103110.0,0.06334137]
[1747507708688,1.9150928,103120.0,103110.0,0.01194137]
[1747507709175,1.9143728,103120.0,103110.0,0.01194137]
[1747507712291,1.71846788,103120.0,103110.0,0.01194137]
[1747507712492,1.9143728,103120.0,103110.0,0.01194137]
[1747507713898,1.71846788,103120.0,103110.0,0.01194137]
[1747507714192,1.9143728,103120.0,103110.0,0.01194137]
[1747507715495,1.7008928,103120.0,103110.0,0.01194137]
[1747507715698,1.9142928,103120.0,103110.0,0.01194137]
[1747507717297,1.9142928,103120.0,103110.0,0.01497312]
[1747507722198,1.9142928,103120.0,103110.0,0.01497311]
[1747507724100,1.81634034,103120.0,103110.0,0.01497312]
[1747507724400,1.38942034,103120.0,103110.0,0.05837312]
[1747507724793,1.37942034,103120.0,103110.0,0.07837312]
[1747507726692,1.80618034,103120.0,103110.0,0.30837312]
[1747507726893,1.28146788,103120.0,103110.0,0.55025902]
[1747507727195,1.23146788,103120.0,103110.0,0.69461148]
[1747507727901,1.23146788,103120.0,103110.0,0.59665902]
[1747507728602,1.32942034,103120.0,103110.0,0.59665902]
[1747507729019,1.32942034,103120.0,103110.0,0.36665902]
[1747507729323,1.32942034,103120.0,103110.0,0.59665902]
[1747507729507,1.48049717,103120.0,103110.0,0.59665902]
[1747507732816,1.48049717,103120.0,103110.0,0.59665873]
[1747507734220,1.52399717,103120.0,103110.0,0.59665873]
[1747507735518,1.16319717,103120.0,103110.0,0.59665873]
[1747507737519,1.16319717,103120.0,103110.0,0.40277283]
[1747507737815,1.16319717,103120.0,103110.0,0.03497283]
[1747507737816,1.26114963,103120.0,103110.0,0.03497283]
[1747507738017,1.26114963,103120.0,103110.0,0.01497283]
[1747507738612,1.26114963,103120.0,103110.0,0.01497315]
[1747507738818,1.26114963,103120.0,103090.0,0.47993417]
[1747507738819,0.1939046,103100.0,103090.0,0.52841477]
[1747507739014,0.65265706,103100.0,103090.0,0.7914466]
[1747507739219,0.78725706,103100.0,103090.0,0.9714466]
[1747507739923,0.78725706,103100.0,103090.0,0.9734466]
[1747507740421,0.78725706,103100.0,103090.0,0.92496598]
[1747507740622,0.88520952,103100.0,103090.0,0.57846103]
[1747507740819,1.24600952,103100.0,103090.0,0.48506103]
[1747507741021,1.24600952,103100.0,103090.0,0.47506103]
[1747507741217,1.24600952,103100.0,103090.0,0.47202922]
[1747507741820,1.26084916,103100.0,103090.0,0.47202922]
[1747507743130,1.26084916,103100.0,103090.0,0.41595282]
[1747507743315,1.26084916,103100.0,103090.0,0.22202922]
[1747507744126,1.49102424,103100.0,103090.0,0.22202922]
[1747507744314,1.68692916,103100.0,103090.0,0.22202922]
[1747507744513,1.26084916,103100.0,103090.0,0.22202922]
[1747507744717,1.68692916,103100.0,103090.0,0.22202922]
[1747507744919,1.68692916,103100.0,103090.0,0.26782922]
[1747507745122,1.68692916,103100.0,103090.0,0.27327138]
[1747507745725,1.5889767,103100.0,103090.0,0.27327138]
[1747507746314,1.5889767,103100.0,103090.0,0.23624216]
[1747507748027,1.73961676,103100.0,103090.0,0.23624216]
[1747507749226,1.73961676,103100.0,103090.0,0.19044216]
[1747507749629,1.83756922,103100.0,103090.0,0.19044216]
[1747507750413,0.1939423,103080.0,103070.0,0.06154981]
[1747507750627,1.01349476,103080.0,103070.0,0.30287287]
[1747507750829,1.36391476,103080.0,103070.0,0.25194033]
[1747507751013,1.36391476,103080.0,103070.0,0.44590153]
[1747507751217,1.36391476,103080.0,103070.0,0.62590153]
[1747507751418,1.36391476,103080.0,103070.0,0.67380153]
[1747507751624,1.36391476,103080.0,103070.0,0.68980153]
[1747507751820,1.15079476,103080.0,103070.0,0.68980153]
[1747507752024,1.36391476,103080.0,103070.0,0.68980153]
[1747507752528,1.15079476,103080.0,103070.0,0.68980153]
[1747507752723,1.2659623,103080.0,103070.0,0.78060153]
[1747507753022,0.09,103080.0,103070.0,0.88355399]
[1747507753228,0.09,103080.0,103070.0,1.24738636]
[1747507753414,0.4081,103090.0,103080.0,0.1939423]
[1747507753619,0.6934235,103090.0,103080.0,0.63179476]
[1747507754018,0.6461235,103090.0,103080.0,0.63179476]
[1747507754218,0.6461235,103090.0,103080.0,0.81179476]
[1747507754629,0.6461235,103090.0,103080.0,0.81479476]
[1747507754828,0.2853235,103090.0,103080.0,0.81782696]
[1747507755733,0.2853235,103090.0,103080.0,0.82082696]
[1747507756619,0.2853235,103090.0,103080.0,0.81779476]
[1747507756929,0.2853235,103090.0,103080.0,0.7198423]
[1747507757323,0.2853235,103090.0,103080.0,0.72287442]
[1747507757923,0.0441,103090.0,103080.0,0.82082688]
[1747507758123,0.2380234,103090.0,103080.0,0.82082688]
[1747507759127,0.55584006,103100.0,103090.0,0.1939236]
[1747507759430,0.19484006,103100.0,103090.0,1.03860803]
[1747507759632,0.19484006,103100.0,103090.0,1.34844403]
[1747507760137,0.19484006,103100.0,103090.0,1.52844403]
[1747507760433,0.38874476,103100.0,103090.0,1.53244403]
[1747507760633,0.38874476,103100.0,103090.0,1.17164403]
[1747507761133,0.38874476,103100.0,103090.0,1.17164384]
[1747507761328,0.2381047,103100.0,103090.0,1.22302129]
[1747507762736,0.2381047,103100.0,103090.0,1.12602529]
[1747507764828,0.2381047,103100.0,103090.0,0.97661535]
[1747507765026,0.2825047,103100.0,103090.0,0.97661535]
[1747507765530,0.2825047,103100.0,103090.0,0.76385535]
[1747507765725,0.6433047,103100.0,103090.0,0.76385535]
[1747507765932,0.79263461,103100.0,103090.0,0.67465535]
[1747507767133,0.79263461,103100.0,103090.0,0.63095535]
[1747507768436,0.79263461,103100.0,103090.0,0.6309556]
[1747507771640,0.79263461,103100.0,103090.0,0.6755556]
[1747507771934,0.2825047,103100.0,103090.0,0.6755556]
[1747507772237,0.2825047,103100.0,103090.0,0.72125542]
[1747507772427,0.6433047,103100.0,103090.0,0.67555542]
[1747507773423,0.2825047,103100.0,103090.0,0.67555542]
[1747507773931,0.6433047,103100.0,103090.0,0.67555546]
[1747507775538,0.6433047,103100.0,103090.0,0.68099762]
[1747507777537,0.6433047,103100.0,103090.0,0.68099764]
[1747507778035,0.79394476,103100.0,103090.0,0.68099764]
[1747507781039,0.83814476,103100.0,103090.0,0.68099764]
[1747507781229,0.93616951,103100.0,103090.0,0.68099764]
[1747507784840,0.93616951,103100.0,103090.0,0.68099765]
[1747507786632,0.93616951,103100.0,103090.0,0.68099766]
[1747507788943,0.57536951,103100.0,103090.0,0.68099766]
[1747507789246,0.93616951,103100.0,103090.0,0.68099766]
[1747507791246,0.83814476,103100.0,103090.0,0.68099766]
[1747507791447,0.83814476,103100.0,103090.0,0.72569766]
[1747507792945,0.83814476,103100.0,103090.0,0.77019766]
[1747507793143,0.83814476,103100.0,103090.0,0.77019761]
[1747507795343,0.83814476,103100.0,103090.0,0.80722683]
[1747507801150,0.93616951,103100.0,103090.0,0.80722683]
[1747507802350,0.93616951,103100.0,103090.0,0.71802683]
[1747507803947,0.84756951,103100.0,103090.0,0.71802683]
[1747507804147,0.84756951,103100.0,103090.0,0.90895158]
[1747507804148,0.55564006,103100.0,103090.0,0.90895158]
[1747507804350,0.74954476,103100.0,103090.0,0.90895158]
[1747507804654,0.60024006,103100.0,103090.0,0.90895158]
[1747507804848,0.79414476,103100.0,103090.0,0.90895158]
[1747507805855,0.43334476,103100.0,103090.0,0.90895158]
[1747507808148,0.43334476,103100.0,103090.0,0.81092683]
[1747507808355,0.79414476,103100.0,103090.0,0.90895158]
[1747507808552,0.47754476,103100.0,103090.0,0.90895158]
[1747507808755,0.93636951,103100.0,103090.0,0.76472683]
[1747507810858,0.57556951,103100.0,103090.0,0.76472683]
[1747507811164,0.93636951,103100.0,103090.0,0.76472683]
[1747507811350,0.93636951,103100.0,103090.0,0.76472685]
[1747507811946,0.83834476,103100.0,103090.0,0.76472685]
[1747507812158,0.83834476,103100.0,103090.0,0.81052685]
[1747507812453,0.28364006,103100.0,103090.0,0.9085516]
[1747507812758,0.23944006,103100.0,103090.0,1.2693516]
[1747507813359,0.19484006,103100.0,103090.0,1.31693818]
[1747507814063,0.19484006,103100.0,103090.0,1.52909818]
[1747507816053,0.19484006,103100.0,103090.0,1.74145818]
[1747507816561,0.19484006,103100.0,103090.0,2.09185818]
[1747507817059,0.19484006,103100.0,103090.0,1.73105818]
[1747507817262,0.19484006,103100.0,103090.0,2.09185818]
[1747507819462,0.23864006,103100.0,103090.0,2.09185818]
[1747507821451,0.088,103100.0,103090.0,2.09185818]
[1747507822156,0.088,103100.0,103090.0,1.73105818]
[1747507822361,0.088,103100.0,103090.0,2.09185818]
[1747507823962,0.088,103100.0,103090.0,2.09185792]
[1747507825063,0.088,103100.0,103090.0,1.87969792]
[1747507825365,0.088,103100.0,103090.0,2.09173792]
[1747507825559,0.2819047,103100.0,103090.0,1.66733792]
[1747507825766,0.2819047,103100.0,103090.0,1.66733793]
[1747507825969,0.3257047,103100.0,103090.0,1.66733793]
[1747507826864,0.3257047,103100.0,103090.0,1.61975135]
[1747507828267,0.3257047,103100.0,103090.0,1.25895135]
[1747507828459,0.3257047,103100.0,103090.0,1.61975135]
[1747507828658,0.3257047,103100.0,103090.0,1.26935135]
[1747507829469,0.3257047,103100.0,103090.0,0.90855135]
[1747507829666,0.3257047,103100.0,103090.0,1.26935135]
[1747507830965,0.3257047,103100.0,103090.0,1.23232213]
[1747507832368,0.1318,103100.0,103090.0,1.23232213]
[1747507832669,0.0442,103100.0,103090.0,1.33034688]
[1747507832868,0.0442,103100.0,103090.0,1.36232201]
[1747507833261,0.0442,103100.0,103090.0,1.40989975]
[1747507834772,0.0842,103100.0,103090.0,1.40989975]
[1747507836272,0.0842,103100.0,103090.0,1.44692897]
[1747507837671,0.0842,103100.0,103090.0,1.79732897]
[1747507838172,0.0842,103100.0,103090.0,1.79429747]
[1747507838372,0.0842,103100.0,103090.0,1.79732895]
[1747507839274,0.0842,103100.0,103090.0,1.80975066]
[1747507839965,0.0842,103100.0,103090.0,1.44895067]
[1747507840270,0.0842,103100.0,103090.0,1.80975067]
[1747507845072,0.1142,103100.0,103090.0,1.80975067]
[1747507847574,0.1142,103100.0,103090.0,2.02175067]
[1747507847773,0.10474184,103100.0,103090.0,2.02175067]
[1747507849173,0.10474184,103100.0,103090.0,2.02175064]
[1747507851174,0.10474184,103100.0,103090.0,1.92372589]
[1747507851376,0.10474184,103100.0,103090.0,2.02175064]
[1747507856877,0.10474184,103100.0,103090.0,2.0671081]
[1747507858087,0.0952837,103100.0,103090.0,2.0671081]
[1747507858484,0.0952837,103100.0,103090.0,1.7063081]
[1747507858684,0.0952837,103100.0,103090.0,2.0671081]
[1747507859983,0.0952837,103100.0,103090.0,2.06710809]
[1747507860380,0.0952837,103100.0,103090.0,1.70630809]
[1747507860590,0.0952837,103100.0,103090.0,1.96908334]
[1747507860790,0.0952837,103100.0,103090.0,2.06710809]
[1747507863179,0.0952837,103100.0,103090.0,2.27870809]
[1747507865188,0.0952837,103100.0,103090.0,2.18068334]
[1747507865392,0.0952837,103100.0,103090.0,2.27870809]
[1747507866886,0.0952837,103100.0,103090.0,1.91790809]
[1747507867193,0.0952837,103100.0,103090.0,2.27870809]
[1747507867793,0.0952837,103100.0,103090.0,2.26636019]
[1747507868189,0.0952837,103100.0,103090.0,1.74473544]
[1747507868386,0.0952837,103100.0,103090.0,2.00848019]
[1747507868585,0.0952837,103100.0,103090.0,1.79696019]
[1747507868985,0.0952837,103100.0,103090.0,1.69893544]
[1747507869189,0.0952837,103100.0,103090.0,1.79696019]
[1747507869391,0.0952837,103100.0,103090.0,2.22012019]
[1747507870193,0.0952837,103100.0,103090.0,2.12209544]
[1747507870488,0.0952837,103100.0,103090.0,2.22012019]
[1747507870988,0.0952837,103100.0,103090.0,2.25172019]
[1747507871983,0.08582538,103100.0,103090.0,2.25172019]
[1747507873790,0.08582538,103100.0,103090.0,2.0402002]
[1747507873995,0.08582538,103100.0,103090.0,2.2517202]
[1747507874893,0.08582538,103100.0,103090.0,2.20636274]
[1747507875304,0.08582538,103100.0,103090.0,2.12806274]
[1747507875596,0.08582538,103100.0,103090.0,1.70490274]
[1747507875797,0.27973008,103100.0,103090.0,1.70490274]
[1747507875996,0.27973008,103100.0,103090.0,1.20147799]
[1747507876596,0.27973008,103100.0,103090.0,0.85107799]
[1747507877294,0.27973008,103100.0,103090.0,0.88237799]
[1747507877599,0.27973008,103100.0,103090.0,0.89472589]
[1747507878201,0.64053008,103100.0,103090.0,1.07490589]
[1747507878395,0.73855483,103100.0,103090.0,0.86342589]
[1747507878792,0.64053008,103100.0,103090.0,0.86342589]
[1747507878985,0.73855483,103100.0,103090.0,0.86342589]
[1747507879193,0.73855483,103100.0,103090.0,0.86342619]
[1747507879394,0.83657958,103100.0,103090.0,0.86342619]
[1747507879598,0.73855483,103100.0,103090.0,0.86342619]
[1747507879904,0.73855483,103100.0,103090.0,0.81584845]
[1747507880103,0.73855483,103100.0,103090.0,0.63584845]
[1747507880996,0.73855483,103100.0,103090.0,0.63584875]
[1747507881898,0.73855483,103100.0,103090.0,0.50584875]
[1747507882294,0.73855483,103100.0,103090.0,0.68584875]
[1747507882704,0.88919489,103100.0,103090.0,0.63639782]
[1747507883701,0.79117014,103100.0,103090.0,0.63639782]
[1747507883894,0.88919489,103100.0,103090.0,0.63639782]
[1747507888105,0.88919489,103100.0,103090.0,0.63639776]
[1747507889911,0.88919489,103100.0,103090.0,0.63639778]
[1747507893724,0.89019489,103100.0,103090.0,0.63439778]
[1747507893923,0.89119489,103100.0,103090.0,0.63239778]
[1747507899527,0.89119489,103100.0,103090.0,0.66279778]
[1747507903136,0.79317014,103100.0,103090.0,0.66279778]
[1747507903436,0.89119489,103100.0,103090.0,0.66279778]
[1747507905332,0.53039489,103100.0,103090.0,0.66279778]
[1747507905534,0.89119489,103100.0,103090.0,0.66279778]
[1747507907928,0.89119489,103100.0,103090.0,0.66279777]
[1747507910926,0.79317014,103100.0,103090.0,0.66279777]
[1747507911125,0.89119489,103100.0,103090.0,0.66279777]
[1747507911437,0.89119489,103100.0,103090.0,0.66279776]
[1747507915841,0.79317014,103100.0,103090.0,0.76082251]
[1747507916036,0.76317014,103100.0,103090.0,0.82222251]
[1747507916332,0.40237014,103100.0,103090.0,0.82222251]
[1747507918141,0.40137014,103100.0,103090.0,0.82222251]
[1747507919041,0.40037014,103100.0,103090.0,0.82222251]
[1747507919341,0.61197092,103100.0,103090.0,0.82222251]
[1747507921638,0.61197092,103100.0,103090.0,0.81919051]
[1747507921843,0.61197092,103100.0,103090.0,0.82222233]
[1747507923646,0.61197092,103100.0,103090.0,0.72419758]
[1747507924951,1.07079567,103100.0,103090.0,0.72419758]
[1747507925147,1.10349567,103100.0,103090.0,0.72419758]
[1747507925339,1.10349567,103100.0,103090.0,0.72419766]
[1747507927557,1.10349567,103100.0,103090.0,0.69309766]
[1747507927849,1.10349567,103100.0,103090.0,0.66279766]
[1747507929946,1.10349567,103100.0,103090.0,0.63239766]
[1747507930746,1.10349567,103100.0,103090.0,0.63239778]
[1747507931952,1.20152042,103100.0,103090.0,0.63239778]
[1747507932156,1.10349567,103100.0,103090.0,0.63239778]
[1747507932549,1.10349567,103100.0,103090.0,0.6323978]
[1747507934046,1.10349567,103100.0,103090.0,0.6639978]
[1747507937956,1.10349567,103100.0,103090.0,0.66399779]
[1747507940458,0.74269567,103100.0,103090.0,0.66399779]
[1747507940659,1.10349567,103100.0,103090.0,0.66399779]
[1747507941659,1.10349567,103100.0,103090.0,0.6639978]
[1747507941862,1.10349567,103100.0,103090.0,0.6323978]
[1747507942052,1.10349567,103100.0,103090.0,0.4384742]
[1747507942252,1.10349567,103100.0,103090.0,0.6323977]
[1747507943261,0.95285561,103100.0,103090.0,0.63239774]
[1747507945555,0.85483086,103100.0,103090.0,0.63239774]
[1747507945755,0.95285561,103100.0,103090.0,0.63239774]
[1747507947063,0.95285561,103100.0,103090.0,0.63239772]
[1747507947464,0.95285561,103100.0,103090.0,0.43847422]
[1747507947664,0.95285561,103100.0,103090.0,0.63239782]
[1747507948971,1.10394862,103100.0,103090.0,0.63239782]
[1747507949574,1.10394862,103100.0,103090.0,0.66289782]
[1747507949777,1.10394862,103100.0,103090.0,0.46897422]
[1747507949977,1.10394862,103100.0,103090.0,0.66289772]
[1747507951177,0.74314862,103100.0,103090.0,0.66289772]
[1747507951474,1.46474862,103100.0,103090.0,0.66289773]
[1747507957881,1.36672387,103100.0,103090.0,0.66289773]
[1747507958081,1.46474862,103100.0,103090.0,0.66289773]
[1747507959371,1.67594862,103100.0,103090.0,0.66289773]
[1747507961380,1.67594862,103100.0,103090.0,0.63239773]
[1747507961883,1.67594862,103100.0,103090.0,0.66369773]
[1747507962273,1.57792387,103100.0,103090.0,0.66369773]
[1747507962473,1.67594862,103100.0,103090.0,0.69549773]
[1747507962783,1.52485561,103100.0,103090.0,0.69549773]
[1747507963085,1.52485561,103100.0,103090.0,0.69549769]
[1747507963983,1.53953949,103100.0,103090.0,0.69549769]
[1747507964483,1.17873949,103100.0,103090.0,0.69549769]
[1747507966879,1.17873949,103100.0,103090.0,0.69549775]
[1747507968584,1.17873949,103100.0,103090.0,0.69246566]
[1747507968790,0.81793949,103100.0,103090.0,0.66369771]
[1747507968989,1.17873949,103100.0,103090.0,0.66369771]
[1747507970894,1.38993949,103100.0,103090.0,0.66369771]
[1747507973290,1.48796424,103100.0,103090.0,0.18847421]
[1747507973493,1.75496024,103100.0,103090.0,0.18544216]
[1747507973799,0.1939235,103090.0,103080.0,7e-08]
[1747507973981,0.935673,103090.0,103080.0,7e-08]
[1747507974183,0.935673,103090.0,103080.0,0.18000007]
[1747507974793,0.935673,103090.0,103080.0,0.18200007]
[1747507975195,0.935673,103090.0,103080.0,0.00200007]
[1747507975496,0.935673,103090.0,103080.0,0.00400007]
[1747507976099,0.935673,103090.0,103080.0,0.18400007]
[1747507976396,0.936673,103090.0,103080.0,0.18200007]
[1747507976896,0.905673,103090.0,103080.0,0.18200007]
[1747507977098,0.906673,103090.0,103080.0,0.18000007]
[1747507978304,0.906673,103090.0,103080.0,0.18]
[1747507978492,0.1939423,103080.0,103070.0,0.00194033]
[1747507978800,1.2367518,103080.0,103070.0,0.00194033]
[1747507978987,1.2367518,103080.0,103070.0,0.03304033]